bitfinex-derivatives/quotes_SOLF0:USTF0_20250714
["timestamp","ask_amount","ask_price","bid_price","bid_amount"]
[1752465536629,9.2798,167.17,167.16,9.55658138]
[1752465537040,9.2798,167.17,167.16,12.60001518]
[1752465537245,3.3,167.17,167.16,12.60001518]
[1752465538634,16.62324,167.19,167.16,12.60001518]
[1752465538837,3.3,167.18,167.17,12.60001518]
[1752465539741,10.64404,167.19,167.17,3.47]
[1752465539939,7.34404,167.19,167.18,12.62119897]
[1752465540749,7.34404,167.19,167.18,6.50937421]
[1752465541148,10.85404,167.19,167.18,6.50937421]
[1752465543154,16.83314,167.19,167.18,3.03937421]
[1752465545054,16.83314,167.19,167.18,6.31937421]
[1752465545243,202.21314,167.19,167.18,6.31937421]
[1752465545442,202.21314,167.19,167.18,3.03937421]
[1752465547554,5.9812,167.13,167.12,3.28]
[1752465547855,3.51,167.14,167.13,3.28]
[1752465548155,9.4911,167.14,167.13,3.28]
[1752465549749,191.2411,167.14,167.13,9.46976007]
[1752465550346,194.7511,167.14,167.13,15.50836235]
[1752465551147,191.2411,167.14,167.13,15.50836235]
[1752465551745,194.7511,167.14,167.13,15.50836235]
[1752465552351,9.4911,167.14,167.13,15.50836235]
[1752465552557,194.6511,167.14,167.13,15.50836235]
[1752465552951,9.4911,167.14,167.13,15.50836235]
[1752465553158,194.6111,167.14,167.13,15.50836235]
[1752465553953,9.4911,167.14,167.13,15.50836235]
[1752465554154,194.5911,167.14,167.13,15.50836235]
[1752465554558,194.5911,167.14,167.13,15.51161289]
[1752465555360,194.5711,167.14,167.13,15.51161289]
[1752465556361,194.5711,167.14,167.13,12.23161289]
[1752465557568,5.9812,167.13,167.12,3.28]
[1752465557767,194.5312,167.13,167.12,15.52382527]
[1752465559375,194.5312,167.13,167.12,12.24382527]
[1752465559670,194.5312,167.13,167.12,15.20828419]
[1752465559872,194.5312,167.13,167.12,18.48828419]
[1752465564668,194.5312,167.13,167.12,15.20828419]
[1752465565076,194.5312,167.13,167.12,18.48828419]
[1752465566478,194.5312,167.13,167.12,18.5906918]
[1752465566969,194.5312,167.13,167.12,15.59706525]
[1752465567175,194.5312,167.13,167.12,18.5906918]
[1752465567874,197.41828079,167.13,167.12,15.3106918]
[1752465569879,197.41828079,167.13,167.12,18.5906918]
[1752465572478,5.9812,167.13,167.12,18.5906918]
[1752465572675,190.6212,167.13,167.12,18.5906918]
[1752465573480,196.81828079,167.13,167.12,15.3106918]
[1752465574378,196.81828079,167.13,167.12,18.7806918]
[1752465575178,196.81828079,167.13,167.12,6.46362655]
[1752465575375,196.81828079,167.13,167.12,15.30816371]
[1752465576380,196.81828079,167.13,167.12,18.77816371]
[1752465576579,193.9312,167.13,167.12,18.77816371]
[1752465576778,193.8112,167.13,167.12,18.77816371]
[1752465577084,9.2912,167.13,167.12,18.77816371]
[1752465577478,193.7712,167.13,167.12,18.77816371]
[1752465577686,9.2912,167.13,167.12,18.77816371]
[1752465577879,193.7712,167.13,167.12,18.77816371]
[1752465578279,193.7712,167.13,167.12,18.77880715]
[1752465578581,5.9812,167.13,167.12,18.77880715]
[1752465578775,190.4212,167.13,167.12,18.77880715]
[1752465579585,193.7312,167.13,167.12,18.77880715]
[1752465582083,190.4212,167.13,167.12,18.77880715]
[1752465582991,193.7312,167.13,167.12,18.77880715]
[1752465583187,190.4212,167.13,167.12,18.77880715]
[1752465583892,190.4212,167.13,167.12,12.73318356]
[1752465584193,190.4212,167.13,167.12,18.78234905]
[1752465584586,190.4212,167.13,167.12,18.78329356]
[1752465584787,193.7312,167.13,167.12,18.78329356]
[1752465584986,190.4212,167.13,167.12,18.78329356]
[1752465585387,193.7312,167.13,167.12,18.78329356]
[1752465585792,190.4212,167.13,167.12,18.78329356]
[1752465588292,5.981,167.14,167.12,15.31329356]
[1752465588490,5.981,167.14,167.13,18.78329356]
[1752465588793,190.161,167.14,167.13,18.78329356]
[1752465589993,5.981,167.14,167.13,18.78329356]
[1752465590190,190.121,167.14,167.13,18.78329356]
[1752465590995,190.121,167.14,167.13,12.73487679]
[1752465591188,190.121,167.14,167.13,18.80984336]
[1752465591387,196.31808079,167.14,167.13,15.33984336]
[1752465591586,193.431,167.14,167.13,18.80984336]
[1752465591789,196.31808079,167.14,167.13,18.80984336]
[1752465592497,193.431,167.14,167.13,18.81705773]
[1752465592695,196.31808079,167.14,167.13,18.81705773]
[1752465592886,196.31808079,167.14,167.13,12.55126448]
[1752465593092,196.31808079,167.14,167.13,18.79887504]
[1752465593497,196.31808079,167.14,167.13,18.7991752]
[1752465594799,190.121,167.14,167.13,18.7991752]
[1752465597305,189.941,167.14,167.13,18.7991752]
[1752465598493,193.251,167.14,167.13,18.7991752]
[1752465598692,3.31,167.15,167.14,3.47]
[1752465598891,187.19,167.15,167.14,18.80030342]
[1752465599494,187.19,167.15,167.14,15.33030342]
[1752465599794,189.8605,167.15,167.14,18.80030342]
[1752465600593,7.92382349,167.18,167.15,3.28]
[1752465600794,11.33382349,167.18,167.17,3.28]
[1752465600994,201.13332349,167.18,167.17,18.60587279]
[1752465601197,201.13332349,167.18,167.17,3.28]
[1752465601389,196.09658079,167.18,167.17,18.56222848]
[1752465601795,189.7995,167.18,167.17,18.55385079]
[1752465602000,196.09658079,167.18,167.17,18.55385079]
[1752465602500,9.3895,167.18,167.17,18.55385079]
[1752465602696,193.1895,167.18,167.17,18.55385079]
[1752465603190,7.34404,167.19,167.18,3.28]
[1752465603392,7.34404,167.19,167.18,18.55385079]
[1752465603393,194.51404,167.19,167.18,18.55385079]
[1752465603596,194.51404,167.19,167.18,15.27385079]
[1752465603795,203.38022079,167.19,167.18,15.27000232]
[1752465604192,200.49314,167.19,167.18,15.27000232]
[1752465604401,197.04314,167.19,167.18,18.55000232]
[1752465604809,200.45314,167.19,167.18,15.27000232]
[1752465606100,200.41314,167.19,167.18,18.55000232]
[1752465607304,197.00314,167.19,167.18,18.55000232]
[1752465607603,7.34404,167.19,167.18,18.55000232]
[1752465607803,190.96404,167.19,167.18,18.55000232]
[1752465608206,196.94314,167.19,167.18,18.55000232]
[1752465608803,200.35314,167.19,167.18,18.55000232]
[1752465609108,190.96404,167.19,167.18,18.55000232]
[1752465609302,190.96404,167.19,167.18,6.27350775]
[1752465609507,190.96404,167.19,167.18,18.52099452]
[1752465610002,196.94314,167.19,167.18,18.52099452]
[1752465610399,13.32314,167.19,167.18,18.52099452]
[1752465610598,196.88314,167.19,167.18,18.52099452]
[1752465612510,190.90404,167.19,167.18,18.51404585]
[1752465614015,200.29314,167.19,167.18,18.51404585]
[1752465614413,196.88314,167.19,167.18,12.46150398]
[1752465614812,190.90404,167.19,167.18,12.46150398]
[1752465616007,190.90404,167.19,167.18,9.47118812]
[1752465617111,190.74404,167.19,167.18,9.47118812]
[1752465617509,200.13314,167.19,167.18,9.47118812]
[1752465617714,196.72314,167.19,167.18,9.47118812]
[1752465618216,190.72404,167.19,167.18,9.47118812]
[1752465618412,194.13404,167.19,167.18,9.47118812]
[1752465618619,190.72404,167.19,167.18,9.47118812]
[1752465619832,7.34404,167.19,167.18,13.97951181]
[1752465620027,190.68404,167.19,167.18,13.97951181]
[1752465620214,190.68404,167.19,167.18,9.47118812]
[1752465620820,190.68404,167.19,167.18,13.97951181]
[1752465621124,7.34404,167.19,167.18,9.47118812]
[1752465621718,7.34404,167.19,167.18,3.28]
[1752465621915,3.41,167.25,167.18,3.28]
[1752465622119,516.9,167.28,167.22,3.28]
[1752465622120,3.41,167.23,167.22,3.28]
[1752465622317,3.41,167.23,167.15,3.28]
[1752465622518,183.26,167.22,167.16,4.50832369]
[1752465622828,3.41,167.21,167.17,3.28]
[1752465623421,183.26,167.22,167.13,4.50832369]
[1752465623625,183.26,167.22,167.17,3.28]
[1752465623626,3.41,167.21,167.17,3.28]
[1752465624319,3.41,167.21,167.17,4.50832369]
[1752465624530,3.41,167.21,167.19,3.28]
[1752465625126,9.3891,167.2,167.19,3.28]
[1752465627034,9.3891,167.2,167.19,6.26385181]
[1752465627222,9.3891,167.2,167.19,12.26318928]
[1752465627625,192.5091,167.2,167.19,12.26318928]
[1752465627826,192.5091,167.2,167.19,8.98318928]
[1752465628023,192.5091,167.2,167.19,15.13647283]
[1752465628629,192.5091,167.2,167.19,18.41647283]
[1752465631735,192.5091,167.2,167.19,18.41181012]
[1752465633234,192.5091,167.2,167.19,15.13181012]
[1752465634038,195.3935911,167.2,167.19,15.13181012]
[1752465635630,9.2602,167.16,167.15,3.4]
[1752465635830,192.2202,167.16,167.15,15.0939889]
[1752465636038,195.1046911,167.16,167.15,15.0939889]
[1752465636635,192.2202,167.16,167.15,15.0939889]
[1752465636830,195.1046911,167.16,167.15,15.0939889]
[1752465637040,192.2202,167.16,167.15,15.0939889]
[1752465638534,192.2202,167.16,167.15,15.10618014]
[1752465639942,192.2202,167.16,167.15,11.38214014]
[1752465643648,192.2202,167.16,167.15,14.78214014]
[1752465644137,9.2602,167.16,167.15,14.78214014]
[1752465644344,192.0602,167.16,167.15,8.67846371]
[1752465644539,192.0602,167.16,167.15,9.51000681]
[1752465644739,192.0602,167.16,167.15,6.11000681]
[1752465645143,5.9805,167.15,167.14,3.4]
[1752465645341,9.2605,167.15,167.14,9.51057669]
[1752465646245,9.2605,167.15,167.14,6.11057669]
[1752465646944,3.28,167.15,167.14,6.11057669]
[1752465647244,186.0,167.15,167.14,9.51057669]
[1752465647642,191.9805,167.15,167.14,9.51057669]
[1752465648441,191.9805,167.15,167.14,6.11057669]
[1752465649245,191.9805,167.15,167.14,9.51057669]
[1752465651850,9.2603,167.16,167.14,9.51057669]
[1752465652046,185.9,167.15,167.13,5.9812]
[1752465652240,4.51076222,167.19,167.14,15.16922085]
[1752465652448,3.28,167.21,167.16,3.4]
[1752465652649,3.28,167.19,167.18,3.4]
[1752465652850,3.28,167.19,167.18,18.56545763]
[1752465653348,3.28,167.19,167.18,18.56210182]
[1752465653947,3.28,167.19,167.18,18.56211459]
[1752465654142,182.6,167.2,167.18,21.14151459]
[1752465654344,185.88,167.2,167.19,18.56211459]
[1752465655154,191.8587,167.2,167.19,18.56211459]
[1752465655350,185.88,167.2,167.19,18.56211459]
[1752465657757,3.28,167.2,167.19,15.16211459]
[1752465658353,9.2587,167.2,167.19,12.24141417]
[1752465658548,9.2587,167.2,167.19,6.13470357]
[1752465658755,9.2587,167.2,167.19,9.53470357]
[1752465659854,9.2587,167.2,167.19,6.13470357]
[1752465660753,191.6387,167.2,167.19,6.13470357]
[1752465660956,194.52410198,167.2,167.19,6.13470357]
[1752465661451,9.2491,167.19,167.18,3.61]
[1752465661752,191.6091,167.19,167.18,9.70135002]
[1752465661960,191.6091,167.19,167.18,6.09135002]
[1752465662553,3.27,167.19,167.18,9.70135002]
[1752465662863,185.59,167.19,167.18,9.70135002]
[1752465663060,3.27,167.19,167.18,9.70135002]
[1752465663358,185.59,167.19,167.18,9.70135002]
[1752465663761,194.45450198,167.19,167.18,6.09135002]
[1752465665556,191.5691,167.19,167.18,6.09135002]
[1752465665756,3.27,167.19,167.18,9.70135002]
[1752465665955,185.57,167.19,167.18,9.70135002]
[1752465666153,185.57,167.19,167.18,15.68085002]
[1752465666560,182.3,167.19,167.18,15.68085002]
[1752465666955,182.3,167.19,167.18,9.70135002]
[1752465667156,185.57,167.19,167.18,9.70135002]
[1752465668653,191.5491,167.19,167.18,6.09135002]
[1752465669756,185.57,167.19,167.15,3.61]
[1752465669954,3.27,167.17,167.16,2.88540198]
[1752465670159,3.27,167.17,167.16,6.09431399]
[1752465670564,3.27,167.17,167.16,6.0948651]
[1752465671061,185.41,167.17,167.16,6.0948651]
[1752465671363,191.3898,167.17,167.16,6.0948651]
[1752465672361,185.41,167.17,167.16,6.0948651]
[1752465672758,185.41,167.17,167.16,9.7048651]
[1752465674358,5.02138325,167.21,167.16,15.6850651]
[1752465674562,9.2494,167.19,167.17,6.0948651]
[1752465674763,182.06,167.2,167.16,3.61]
[1752465674764,3.27,167.18,167.16,3.61]
[1752465675063,185.31,167.17,167.16,3.61]
[1752465675263,185.31,167.17,167.16,9.70733565]
[1752465678771,185.31,167.17,167.16,9.70778099]
[1752465680177,191.2898,167.17,167.16,6.09778099]
[1752465682071,194.17520198,167.17,167.16,6.09778099]
[1752465682772,191.2898,167.17,167.16,6.09778099]
[1752465685562,185.31,167.17,167.16,6.09778099]
[1752465685765,185.09,167.17,167.16,9.70778099]
[1752465685968,8.29138325,167.18,167.17,3.61]
[1752465686172,190.11138325,167.18,167.17,9.70778099]
[1752465687571,3.27,167.17,167.08,3.61]
[1752465687766,3.27,167.17,167.12,3.61]
[1752465687966,3.27,167.17,167.14,3.61]
[1752465688159,3.27,167.17,167.15,6.00254206]
[1752465688364,9.2498,167.17,167.16,6.00254206]
[1752465688563,9.2498,167.17,167.16,6.00242726]
[1752465691669,3.27,167.17,167.16,9.54242726]
[1752465691870,184.99,167.17,167.16,9.54242726]
[1752465692174,184.99,167.17,167.16,6.00242726]
[1752465692374,3.27,167.17,167.16,6.00242726]
[1752465692573,9.2498,167.17,167.16,9.54242726]
[1752465693083,190.9698,167.17,167.16,9.54242726]
[1752465693375,190.9698,167.17,167.16,9.58457192]
[1752465693879,184.99,167.17,167.16,9.58457192]
[1752465694879,3.27,167.17,167.16,9.58457192]
[1752465695071,190.9298,167.17,167.16,6.04457192]
[1752465695276,9.2498,167.17,167.16,6.04457192]
[1752465695575,190.9298,167.17,167.16,6.04457192]
[1752465695773,9.2498,167.17,167.16,6.04457192]
[1752465695972,190.9298,167.17,167.16,6.04457192]
[1752465696170,190.9098,167.17,167.16,6.04457192]
[1752465696378,3.42,167.14,167.11,5.9819]
[1752465696574,185.08,167.13,167.12,9.58369276]
[1752465696877,3.42,167.17,167.13,3.54]
[1752465697074,3.42,167.15,167.14,6.04369276]
[1752465697576,3.42,167.15,167.14,9.58369276]
[1752465699275,3.42,167.15,167.14,9.58271644]
[1752465699773,3.42,167.15,167.14,3.54]
[1752465699966,3.42,167.15,167.14,9.58174845]
[1752465700164,185.02,167.15,167.14,9.58174845]
[1752465700777,191.0005,167.15,167.14,9.58174845]
[1752465700968,191.0005,167.15,167.14,6.04174845]
[1752465701677,191.0005,167.15,167.14,9.58174845]
[1752465702669,191.0005,167.15,167.14,6.04174845]
[1752465702670,195.51048051,167.15,167.14,6.04174845]
[1752465702976,5.9832,167.08,167.07,3.54]
[1752465703173,3.42,167.07,167.03,3.54]
[1752465703375,186.59200164,167.08,166.95,4.50998051]
[1752465703574,5.9835,167.07,167.04,3.54]
[1752465703772,5.03200164,167.09,167.05,4.50998051]
[1752465703973,521.38998051,167.14,167.06,3.54]
[1752465703974,181.54,167.08,167.06,3.54]
[1752465704176,181.54,167.1,167.06,3.54]
[1752465704479,181.54,167.1,167.07,3.54]
[1752465704679,5.9815,167.13,167.1,3.54]
[1752465704981,181.54,167.12,167.1,3.54]
[1752465705480,181.54,167.12,167.06,4.50998051]
[1752465705481,187.5217,167.12,167.08,5.9829]
[1752465705679,3.42,167.11,167.07,3.54]
[1752465706577,3.42,167.11,167.08,5.9827]
[1752465706776,3.42,167.11,167.09,3.54]
[1752465707282,9.402,167.11,167.07,5.9833]
[1752465707572,9.402,167.11,167.1,3.54]
[1752465707778,3.42,167.09,167.08,3.54]
[1752465707975,181.52,167.09,167.08,3.54]
[1752465708576,184.94,167.09,167.08,3.54]
[1752465709077,181.52,167.09,167.08,9.523]
[1752465709278,181.52,167.09,167.08,3.54]
[1752465710182,184.94,167.09,166.99,4.94471594]
[1752465710472,3.42,167.08,167.05,3.54]
[1752465710675,181.5,167.08,167.05,3.54]
[1752465710869,3.42,167.07,167.06,3.54]
[1752465711072,181.5,167.08,167.06,3.54]
[1752465711374,181.5,167.08,167.02,3.54]
[1752465711569,184.92,167.08,167.06,3.54]
[1752465711773,184.92,167.08,167.07,3.54]
[1752465711974,181.5,167.08,167.07,3.54]
[1752465712172,5.9827,167.09,167.07,3.54]
[1752465712378,181.48,167.08,167.03,4.50998051]
[1752465712781,187.4632,167.08,167.0,3.54]
[1752465712974,187.4632,167.08,167.03,3.54]
[1752465713375,181.48,167.08,167.03,3.54]
[1752465713575,181.48,167.08,167.06,3.54]
[1752465714378,184.9,167.08,167.06,3.54]
[1752465714679,3.42,167.07,167.05,3.54]
[1752465715479,5.9835,167.07,167.06,3.54]
[1752465715682,9.4035,167.07,167.01,4.50998051]
[1752465715980,5.9835,167.07,167.01,4.50998051]
[1752465716175,5.9831,167.08,167.04,5.9844]
[1752465716370,5.9831,167.08,167.05,3.54]
[1752465716371,181.44,167.07,167.05,3.54]
[1752465716779,187.4234,167.07,167.05,3.54]
[1752465717984,181.44,167.07,167.05,3.54]
[1752465718784,181.44,167.07,167.05,9.524]
[1752465719086,187.4235,167.07,167.06,3.54]
[1752465719688,187.4235,167.07,167.05,3.54]
[1752465720386,181.4,167.08,167.06,3.27]
[1752465721803,181.4,167.09,167.06,3.27]
[1752465722602,3.33,167.11,167.06,3.27]
[1752465722801,184.71,167.1,167.07,5.9832]
[1752465722995,3.33,167.1,167.08,3.27]
[1752465723202,184.71,167.1,167.09,3.27]
[1752465723397,3.33,167.09,167.05,5.984]
[1752465723705,3.33,167.09,167.08,3.27]
[1752465723997,9.3129,167.09,167.05,5.984]
[1752465724207,3.33,167.08,167.07,3.27]
[1752465725302,9.3131,167.08,167.07,3.27]
[1752465725501,3.33,167.08,167.01,4.50998051]
[1752465725703,5.9835,167.07,167.02,3.27]
[1752465726007,3.33,167.06,167.03,5.9847]
[1752465726202,3.33,167.06,167.04,3.27]
[1752465726203,181.34,167.06,167.04,3.27]
[1752465726405,3.33,167.05,167.0,4.50998051]
[1752465726709,3.33,167.05,167.03,5.9847]
[1752465726894,3.33,167.05,167.04,3.27]
[1752465727101,181.34,167.06,167.04,3.27]
[1752465727301,3.33,167.06,167.04,3.27]
[1752465727497,181.32,167.07,167.05,3.27]
[1752465728101,181.32,167.07,167.05,9.2539]
[1752465728406,181.32,167.07,167.03,3.27]
[1752465729004,184.65,167.07,167.03,3.27]
[1752465729904,3.33,167.06,166.98,4.94183891]
[1752465730101,184.65,167.07,167.01,3.27]
[1752465730298,190.6335,167.07,167.04,5.9842]
[1752465730498,181.32,167.07,167.04,3.27]
[1752465730906,187.3034,167.07,167.05,3.27]
[1752465731104,187.3034,167.07,167.04,5.9843]
[1752465731105,190.6334,167.07,167.06,3.27]
[1752465731310,9.3134,167.07,167.06,3.27]
[1752465732016,3.33,167.05,166.99,3.27]
[1752465732306,3.33,167.05,167.02,5.9849]
[1752465732512,3.33,167.05,167.03,3.27]
[1752465733407,3.33,167.04,167.02,3.27]
[1752465733712,3.33,167.04,166.96,3.27]
[1752465734212,3.33,167.05,166.99,3.27]
[1752465734414,3.33,167.05,167.01,3.27]
[1752465734610,3.33,167.05,167.02,3.27]
[1752465735106,5.9838,167.06,167.02,3.27]
[1752465735301,9.3138,167.06,167.02,3.27]
[1752465735503,3.33,167.1,167.04,3.27]
[1752465735701,3.33,167.08,167.04,3.27]
[1752465735913,5.9837,167.07,167.04,3.27]
[1752465736211,3.33,167.06,167.05,3.27]
[1752465737007,9.3137,167.06,167.05,3.27]
[1752465737311,3.33,167.06,167.05,3.27]
[1752465741713,181.26,167.1,167.0,3.27]
[1752465741914,184.59,167.1,167.04,3.27]
[1752465742309,5.982,167.11,167.04,3.27]
[1752465742511,3.33,167.12,167.04,3.27]
[1752465742715,3.33,167.12,167.06,3.27]
[1752465743917,3.33,167.12,167.09,3.27]
[1752465744913,181.82,167.13,167.09,3.27]
[1752465745112,3.33,167.12,167.09,3.27]
[1752465745417,3.33,167.12,167.11,3.27]
[1752465746120,9.3116,167.12,167.11,3.27]
[1752465747322,3.33,167.12,167.11,3.27]
[1752465748816,3.33,167.14,167.11,3.27]
[1752465749124,181.52,167.15,167.07,4.94600884]
[1752465749414,6.67012,167.17,167.12,5.9816]
[1752465749619,12.65002,167.17,167.1,3.27]
[1752465749808,6.67012,167.17,167.1,3.27]
[1752465750012,3.34012,167.17,167.16,5.9802]
[1752465750214,3.34012,167.17,167.16,9.2502]
[1752465751719,2e-05,167.17,167.16,9.2502]
[1752465754820,2e-05,167.17,167.07,6.58889806]
[1752465754821,3.42002,167.17,167.11,3.41]
[1752465755024,2e-05,167.17,167.13,3.41]
[1752465755319,2e-05,167.17,167.14,5.9806]
[1752465755526,2e-05,167.17,167.15,3.41]
[1752465755722,3.42002,167.17,167.16,3.41]
[1752465755916,9.40012,167.17,167.16,3.41]
[1752465757020,5.98012,167.17,167.11,4.50998051]
[1752465757215,3.42,167.16,167.15,3.41]
[1752465757526,2e-05,167.17,167.15,3.41]
[1752465758024,2e-05,167.17,167.15,9.3904]
[1752465758226,2e-05,167.17,167.12,4.50998051]
[1752465758424,2e-05,167.17,167.13,3.41]
[1752465759021,3.42002,167.17,167.13,3.41]
[1752465759221,2e-05,167.17,167.13,3.41]
[1752465759628,5.97982,167.17,167.14,3.41]
[1752465759926,2e-05,167.17,167.14,3.41]
[1752465760528,2e-05,167.17,167.14,5.9806]
[1752465760726,2e-05,167.17,167.15,3.41]
[1752465761225,2e-05,167.17,167.16,3.41]
[1752465761827,2e-05,167.17,167.16,5.9802]
[1752465767229,2e-05,167.17,167.16,10.49018051]
[1752465768431,2e-05,167.17,167.14,4.50998051]
[1752465768630,2e-05,167.17,167.15,3.41]
[1752465768821,2e-05,167.17,167.16,4.50998051]
[1752465769027,2e-05,167.17,167.16,5.9802]
[1752465769231,2e-05,167.17,167.16,10.49018051]
[1752465769837,2e-05,167.17,167.16,5.9802]
[1752465770035,2e-05,167.17,167.16,10.49018051]
[1752465771225,3.42,167.24,167.19,5.979]
[1752465771428,3.42,167.24,167.19,9.389]
[1752465771736,3.42,167.22,167.19,5.979]
[1752465772234,3.42,167.21,167.18,9.3893]
[1752465772432,3.42,167.21,167.18,3.41]
[1752465772824,3.42,167.2,167.16,3.41]
[1752465773034,3.42,167.2,167.17,3.41]
[1752465774134,3.42,167.2,167.14,7.91998051]
[1752465774335,3.42,167.2,167.15,3.41]
[1752465774532,3.42,167.18,167.16,3.41]
[1752465774734,3.42,167.18,167.14,4.50998051]
[1752465774735,3.42,167.18,167.17,3.41]
[1752465776434,9.399,167.2,167.17,3.41]
[1752465776634,3.42,167.19,167.17,3.41]
[1752465777033,9.3991,167.19,167.17,3.41]
[1752465777231,9.3991,167.19,167.18,3.41]
[1752465777937,3.42,167.19,167.18,3.41]
[1752465779434,9.3991,167.19,167.18,3.41]
[1752465780636,3.42,167.19,167.18,3.41]
[1752465781032,181.12,167.22,167.18,3.41]
[1752465781228,9.4386,167.21,167.18,9.3894]
[1752465781434,3.46,167.2,167.18,3.41]
[1752465781933,3.46,167.22,167.19,3.28]
[1752465782134,3.46,167.21,167.17,4.50998051]
[1752465782334,3.46,167.21,167.2,3.28]
[1752465782933,3.46,167.21,167.18,3.28]
[1752465783135,3.46,167.21,167.19,5.94613184]
[1752465783337,3.46,167.21,167.2,8.86747007]
[1752465783541,3.46,167.21,167.2,2.92133823]
[1752465783841,3.46,167.24,167.21,3.28]
[1752465784142,9.438,167.22,167.19,3.28]
[1752465784348,3.46,167.21,167.2,8.87341828]
[1752465784944,9.4386,167.21,167.2,8.87341828]
[1752465785641,3.46,167.21,167.2,12.15341828]
[1752465786043,3.46,167.21,167.2,8.87341828]
[1752465787843,9.4384,167.21,167.2,8.87341828]
[1752465788946,9.4384,167.21,167.2,5.95021321]
[1752465789144,184.56,167.24,167.21,3.28]
[1752465789441,3.46,167.23,167.22,2.93022902]
[1752465789644,9.4377,167.23,167.22,8.89514866]
[1752465790445,14.44085599,167.23,167.22,8.89514866]
[1752465792947,195.52085599,167.23,167.22,8.89514866]
[1752465793148,190.5177,167.23,167.22,8.89514866]
[1752465795154,190.5177,167.23,167.22,2.93022902]
[1752465795849,197.21262372,167.23,167.22,2.93022902]
[1752465796047,190.5177,167.23,167.22,2.93022902]
[1752465796249,190.5177,167.23,167.22,6.21022902]
[1752465796746,195.55534227,167.23,167.22,6.21022902]
[1752465796947,195.55534227,167.23,167.22,2.93022902]
[1752465797548,5.978,167.22,167.21,3.28]
[1752465797850,9.438,167.22,167.21,6.21950331]
[1752465798651,9.438,167.22,167.21,6.21966369]
[1752465799351,9.438,167.22,167.21,2.93966369]
[1752465799543,190.498,167.22,167.21,6.21966369]
[1752465801551,5.03764227,167.24,167.23,3.28]
[1752465801751,189.53764227,167.24,167.23,6.21966369]
[1752465801946,189.53764227,167.24,167.23,9.0449545]
[1752465802153,195.51494227,167.24,167.23,9.0449545]
[1752465802350,195.51494227,167.24,167.23,12.3249545]
[1752465802651,5.03764227,167.24,167.23,12.3249545]
[1752465802852,184.5,167.24,167.23,9.0449545]
[1752465803051,189.53764227,167.24,167.23,12.39955966]
[1752465803249,189.53764227,167.24,167.23,6.10529081]
[1752465803555,9.4377,167.23,167.22,3.28]
[1752465803752,9.4377,167.23,167.22,15.67208905]
[1752465803947,9.4377,167.23,167.22,9.5739194]
[1752465804355,9.4377,167.23,167.22,6.2939194]
[1752465804549,9.4377,167.23,167.22,6.00782539]
[1752465804952,9.4377,167.23,167.22,9.28782539]
[1752465806249,9.4377,167.23,167.22,3.28]
[1752465806554,190.4377,167.23,167.22,9.2862294]
[1752465807150,190.4377,167.23,167.22,3.28]
[1752465809357,5.9782,167.22,167.15,3.28]
[1752465809555,181.0,167.21,167.17,3.28]
[1752465810254,181.0,167.21,167.17,8.20940717]
[1752465810454,181.0,167.21,167.19,5.9788]
[1752465810756,181.0,167.21,167.2,3.32]
[1752465811950,180.98,167.21,167.2,3.32]
[1752465812460,184.3,167.21,167.2,3.32]
[1752465813260,190.2784,167.21,167.2,3.32]
[1752465813656,184.3,167.21,167.2,3.32]
[1752465814456,190.2784,167.21,167.2,3.32]